bitfinex/quotes_ETHUSD_20250213
["timestamp","ask_amount","ask_price","bid_price","bid_amount"]
[1739437843609,0.06746506,2678.5,2678.3,3.0]
[1739437844011,0.06746506,2678.5,2678.3,6.73361]
[1739437844174,0.06746506,2678.5,2678.3,6.73358]
[1739437844917,0.06746506,2678.5,2678.4,3.73357]
[1739437845215,0.06746506,2678.5,2678.3,3.0]
[1739437845412,0.294,2678.6,2678.4,3.73357]
[1739437845570,0.06746506,2678.5,2678.3,6.73367]
[1739437846116,0.06746506,2678.5,2678.3,6.73362]
[1739437846709,0.06746506,2678.5,2678.3,6.61220948]
[1739437847300,0.06746506,2678.5,2678.4,3.73357]
[1739437847502,0.06746506,2678.5,2678.2,3.73381]
[1739437847823,0.06746506,2678.5,2678.3,3.73362]
[1739437848343,0.06746506,2678.5,2678.2,3.73381]
[1739437848501,0.06746506,2678.5,2678.4,3.73357]
[1739437851260,0.06746506,2678.5,2678.4,9.19388831]
[1739437851597,0.293,2678.9,2678.8,3.73301]
[1739437851797,0.3578458,2678.9,2678.8,3.73301]
[1739437853932,0.3578458,2678.9,2678.7,3.0]
[1739437854138,0.015,2678.8,2678.4,0.8249]
[1739437854307,0.015,2678.8,2678.3,3.73365]
[1739437854499,0.015,2678.8,2678.2,0.7923]
[1739437854688,0.0075,2678.6,2678.4,3.73343]
[1739437854895,0.0075,2678.6,2678.5,3.0]
[1739437855090,0.0075,2678.6,2678.5,6.73343]
[1739437855643,0.293,2678.9,2678.6,3.73321]
[1739437855846,0.293,2678.9,2678.4,3.0]
[1739437856059,0.3005,2678.9,2678.8,3.73301]
[1739437856415,0.5833011,2679.1,2678.8,3.7329]
[1739437856618,0.5833011,2679.1,2678.8,3.733]
[1739437856810,0.5833011,2679.1,2678.7,0.7874]
[1739437856997,0.5833011,2679.1,2678.7,3.73309]
[1739437857221,0.5833011,2679.1,2678.5,6.73334]
[1739437857410,0.5833011,2679.1,2678.7,3.73307]
[1739437857728,0.015,2679.0,2678.7,3.73307]
[1739437858395,0.015,2679.0,2678.6,6.73325]
[1739437858599,0.015,2679.0,2678.4,4.36989031]
[1739437858853,0.015,2679.0,2678.8,3.73299]
[1739437860227,0.015,2679.0,2678.5,3.0]
[1739437860434,0.015,2679.0,2678.6,3.7332]
[1739437860926,0.015,2679.0,2678.6,3.73319]
[1739437861122,0.015,2679.0,2678.8,3.73301]
[1739437861359,0.5833011,2679.1,2678.8,3.73301]
[1739437861560,0.06502487,2678.9,2678.8,3.73301]
[1739437861730,0.8743011,2679.1,2678.5,3.0]
[1739437861944,0.06502487,2678.9,2678.5,3.0]
[1739437862126,0.0075,2678.9,2678.5,3.0]
[1739437862323,3.74037,2678.9,2678.5,3.0]
[1739437862521,0.015,2678.7,2678.2,4.46461242]
[1739437862763,0.015,2678.7,2678.4,3.73353]
[1739437862959,0.06507621,2678.6,2678.2,0.73080242]
[1739437863127,0.06507621,2678.6,2678.2,4.46458242]
[1739437863460,0.06507239,2678.5,2678.4,3.73351]
[1739437864767,0.06507239,2678.5,2678.3,3.73369]
[1739437865176,0.06507239,2678.5,2678.4,3.73357]
[1739437867375,0.06507239,2678.5,2678.4,8.93866055]
[1739437867560,0.015,2679.0,2678.7,3.73312]
[1739437867759,0.015,2679.0,2678.7,3.73307]
[1739437867941,0.015,2679.0,2678.8,3.73301]
[1739437868144,0.306,2679.0,2678.8,3.73294]
[1739437868333,0.5833011,2679.1,2678.8,3.73294]
[1739437868532,0.8743011,2679.1,2678.7,3.0]
[1739437868732,0.8743011,2679.1,2678.8,3.733]
[1739437869077,0.8743011,2679.1,2678.8,3.73293]
[1739437869275,0.8743011,2679.1,2678.9,3.73286]
[1739437869432,0.8743011,2679.1,2678.8,3.73293]
[1739437869634,0.8743011,2679.1,2678.9,3.73287]
[1739437870377,0.8818011,2679.1,2679.0,3.73273]
[1739437870755,0.015,2679.0,2678.7,3.0]
[1739437870978,3.74777,2679.0,2678.6,3.0]
[1739437871286,3.74777,2679.0,2678.6,6.73327]
[1739437871436,3.93483534,2679.0,2678.6,6.73327]
[1739437871643,3.74777,2679.0,2678.6,6.73327]
[1739437871833,0.015,2679.0,2678.6,6.73319]
[1739437872070,0.015,2679.0,2678.7,3.73315]
[1739437872274,0.015,2679.0,2678.5,6.73335]
[1739437872573,0.015,2679.0,2678.7,3.73314]
[1739437873025,0.015,2679.0,2678.7,3.73308]
[1739437873677,0.015,2679.0,2678.5,6.73333]
[1739437874196,3.7478,2679.0,2678.5,6.73333]
[1739437874508,3.7478,2679.0,2678.6,3.73328]
[1739437874703,3.7478,2679.0,2678.5,3.0]
[1739437874704,7.48064,2679.0,2678.5,6.73343]
[1739437875011,0.015,2678.9,2678.5,6.73343]
[1739437875214,0.015,2678.9,2678.6,3.73328]
[1739437875405,0.015,2678.9,2678.6,7.46649]
[1739437875716,0.015,2678.9,2678.7,3.73309]
[1739437876419,0.015,2678.9,2678.5,3.0]
[1739437876717,0.06046209,2678.8,2678.6,3.73322]
[1739437877076,0.06046209,2678.8,2678.2,4.53700242]
[1739437877276,0.06046209,2678.8,2678.5,3.0]
[1739437877518,3.79347209,2678.8,2678.5,3.0]
[1739437877815,0.06046209,2678.8,2678.7,3.58869031]
[1739437878018,0.0075,2679.0,2678.5,3.0]
[1739437878342,0.06001091,2678.9,2678.7,3.73307]
[1739437878620,0.06001091,2678.9,2678.7,3.73314]
[1739437879116,0.06751091,2678.9,2678.8,3.73301]
[1739437879939,0.06001091,2678.9,2678.8,3.73301]
[1739437880244,0.8723011,2679.1,2678.8,3.73301]
[1739437880536,0.8798011,2679.1,2679.0,3.73273]
[1739437880908,0.5833011,2679.1,2679.0,6.73273]
[1739437881109,0.5833011,2679.1,2679.0,11.40530359]
[1739437881335,0.5833011,2679.1,2679.0,12.19897931]
[1739437882742,0.5833011,2679.1,2679.0,12.54828858]
[1739437883097,1.1e-06,2679.1,2679.0,12.54828858]
[1739437884013,0.0075,2680.2,2679.9,4.53344]
[1739437884333,0.0075,2680.2,2679.8,3.58869031]
[1739437884700,3.73857,2680.2,2679.8,3.58869031]
[1739437885043,0.0075,2680.2,2679.8,8.55346599]
[1739437885226,0.0075,2680.2,2679.8,4.82184599]
[1739437885429,3.73864,2680.2,2679.8,3.58869031]
[1739437885814,3.73864,2680.2,2679.8,3.0]
[1739437886244,0.289,2680.2,2679.9,3.7314]
[1739437886451,0.289,2680.2,2679.8,6.73162]
[1739437886649,0.05865406,2680.1,2679.8,10.32031031]
[1739437886851,0.015,2680.3,2679.9,1.03203103]
[1739437887056,2.207,2682.5,2680.4,0.7997]
[1739437887238,3.72827,2682.3,2680.7,0.7997]
[1739437887437,0.126,2682.4,2681.2,3.0]
[1739437887610,0.126,2682.4,2682.1,3.72839]
[1739437887950,0.126,2682.4,2681.7,8.11733031]
[1739437888133,3.8541,2682.4,2681.7,8.11733031]
[1739437888344,0.126,2682.4,2681.9,3.7286]
[1739437888831,0.126,2682.4,2681.7,8.11733031]
[1739437889042,0.126,2682.4,2681.9,3.72869]
[1739437889553,0.015,2682.3,2681.8,3.7288]
[1739437889722,0.015,2682.3,2681.8,3.72877]
[1739437890047,0.015,2682.3,2681.9,3.72857]
[1739437890255,0.126,2683.2,2682.1,3.8231]
[1739437890403,0.4493508,2683.4,2682.6,7.31630031]
[1739437890603,3.72675,2683.3,2682.6,7.31637031]
[1739437890895,3.72675,2683.3,2682.3,0.7923]
[1739437890896,0.015,2683.3,2682.3,4.38099031]
[1739437891029,3.86836,2682.9,2682.3,4.38099031]
[1739437891554,0.0075,2682.7,2682.4,3.0]
[1739437891927,0.03973145,2682.6,2682.4,3.0]
[1739437892126,0.0075,2682.7,2682.4,3.0]
[1739437892441,3.72745,2682.8,2682.4,3.0]
[1739437892637,0.0075,2682.7,2682.3,3.58869031]
[1739437893412,0.03972561,2682.6,2682.3,3.58869031]
[1739437894052,0.015,2682.5,2682.0,3.58869031]
[1739437894216,3.72809,2682.4,2682.0,3.58869031]
[1739437894554,0.0397195,2682.3,2682.0,3.58869031]
[1739437894921,0.0397195,2682.3,2682.0,7.31724031]
[1739437895117,0.314,2682.5,2682.0,7.31724031]
[1739437895322,0.0397157,2682.2,2682.0,7.31724031]
[1739437895564,0.314,2682.5,2682.0,7.31724031]
[1739437895864,4.04189,2682.5,2682.0,6.58869031]
[1739437896063,0.0075,2682.3,2682.0,6.58869031]
[1739437896232,0.03971039,2682.2,2682.0,10.31719031]
[1739437896426,0.0075,2682.3,2682.0,10.31719031]
[1739437896622,0.0075,2682.1,2681.7,3.58869031]
[1739437896854,3.76967314,2682.0,2681.7,3.58869031]
[1739437897038,0.04111314,2682.0,2681.8,3.0]
[1739437897251,0.04111314,2682.0,2681.7,3.58869031]
[1739437897472,0.0075,2681.9,2681.7,3.58869031]
[1739437897878,0.04103781,2681.8,2681.4,3.58869031]
[1739437898073,0.04103781,2681.8,2681.7,3.58869031]
[1739437898423,0.0075,2682.1,2681.7,7.31754031]
[1739437898550,0.04096172,2681.8,2681.7,7.31754031]
[1739437898752,0.0075,2682.1,2681.8,3.72882]
[1739437898953,0.0075,2682.1,2681.9,3.7286]
[1739437899140,0.0075,2682.1,2681.8,3.72883]
[1739437899553,0.0075,2682.1,2681.9,3.72869]
[1739437900149,0.0075,2682.1,2681.7,7.31755031]
[1739437900690,0.0075,2682.1,2681.7,11.04641031]
[1739437900871,0.0075,2682.1,2681.7,7.31755031]
[1739437901177,0.0075,2682.1,2681.4,7.31797031]
[1739437901178,0.015,2681.9,2681.4,7.31797031]
[1739437901884,0.0075,2681.9,2681.7,3.0]
[1739437902103,3.74357,2682.0,2681.2,3.72959]
[1739437902301,0.015,2681.9,2681.3,3.0]
[1739437902497,0.0075,2681.7,2681.3,3.0]
[1739437902703,3.73648,2681.7,2681.3,3.0]
[1739437902898,0.0075,2681.6,2681.3,3.0]
[1739437903271,0.0075,2681.4,2681.0,3.72986]
[1739437903464,0.015,2681.4,2681.0,4.46171503]
[1739437903661,0.015,2681.4,2681.1,3.0]
[1739437903862,0.015,2681.4,2681.3,3.0]
[1739437904090,0.015,2681.4,2681.3,6.72953]
[1739437904294,0.298,2681.5,2681.3,6.72953]
[1739437904893,0.298,2681.5,2681.2,3.0]
[1739437905168,0.0075,2681.4,2681.2,3.72967]
[1739437905369,0.0075,2681.4,2681.2,7.61041473]
[1739437905580,0.0075,2681.4,2681.2,3.88074473]
[1739437905792,0.0075,2681.4,2681.2,3.0]
[1739437906103,0.04821788,2681.3,2681.2,3.0]
[1739437906682,0.04821788,2681.3,2681.2,6.72967]
[1739437907368,0.04821788,2681.3,2681.2,3.0]
[1739437907707,0.04821788,2681.3,2681.1,3.72973]
[1739437907880,0.04821788,2681.3,2681.2,6.72967]
[1739437909753,0.126,2682.1,2681.2,3.80389447]
[1739437910043,0.126,2682.1,2681.7,3.72897]
[1739437910044,0.296,2681.8,2681.7,3.72897]
[1739437910189,0.311,2681.8,2681.7,3.72897]
[1739437910398,0.04039601,2681.8,2681.7,3.72897]
[1739437910745,0.0075,2682.0,2681.7,1.10467603]
[1739437910903,3.74365,2682.0,2681.4,3.72926]
[1739437911109,0.0075,2681.7,2681.3,6.72951]
[1739437911492,0.04054058,2681.6,2681.3,6.72951]
[1739437911716,0.04054058,2681.6,2681.3,4.55630765]
[1739437911932,0.04054058,2681.6,2681.5,3.0]
[1739437912443,0.05554058,2681.6,2681.5,3.0]
[1739437913345,0.04054058,2681.6,2681.5,6.72925]
[1739437913633,0.015,2681.9,2681.6,3.0]
[1739437913853,0.312,2681.9,2681.5,3.0]
[1739437914031,0.04070933,2681.8,2681.6,3.72911]
[1739437914391,0.297,2682.0,2681.5,3.0]
[1739437914392,0.0075,2681.9,2681.5,3.0]
[1739437914630,0.04062497,2681.7,2681.5,3.0]
[1739437914816,3.72904,2681.7,2681.3,3.0]
[1739437915027,0.04061669,2681.6,2681.3,6.72948]
[1739437915198,0.04061669,2681.6,2681.3,8.28859565]
[1739437915543,0.04061288,2681.5,2681.4,3.72939]
[1739437915694,0.015,2681.8,2681.3,8.28862565]
[1739437916039,0.04060218,2681.5,2681.3,4.55911565]
[1739437916219,3.72912,2681.6,2681.3,4.55911565]
[1739437916392,1.83715182,2684.1,2681.3,4.55911565]
[1739437916393,8.37e-06,2681.4,2681.3,6.72953]
[1739437916734,0.0075,2682.0,2681.5,3.72925]
[1739437916890,0.0075,2682.0,2681.7,3.0]
[1739437917095,0.0075,2682.0,2681.8,3.72882]
[1739437917395,0.0075,2682.0,2681.9,3.72869]
[1739437917733,0.296,2682.3,2681.9,7.45727]
[1739437917935,0.015,2682.2,2681.9,7.45727]
[1739437918094,0.015,2682.2,2681.6,3.0]
[1739437918295,0.015,2682.2,2681.9,3.72861]
[1739437918710,0.015,2682.2,2681.9,0.34840973]
[1739437919131,3.74356,2682.0,2681.9,0.34840973]
[1739437919317,0.015,2682.0,2681.9,0.34840973]
[1739437919725,0.141,2682.0,2681.9,0.34840973]
[1739437919939,0.0075,2681.9,2681.6,3.0]
[1739437920247,0.0075,2681.9,2681.6,3.72911]
[1739437920414,0.126,2682.7,2681.7,0.7973]
[1739437920611,0.295,2682.6,2682.0,3.72855]
[1739437920864,0.015,2682.5,2682.0,3.72846]
[1739437921010,3.74287,2682.5,2682.0,3.72846]
[1739437921329,0.015,2682.5,2682.0,3.72846]
[1739437921532,0.015,2682.5,2681.9,3.58869031]
[1739437921533,0.015,2682.3,2681.9,7.31738031]
[1739437921844,0.015,2682.5,2681.9,7.31738031]
[1739437921845,3.74286,2682.5,2682.0,3.72849]
[1739437922070,0.015,2682.3,2682.0,4.5606]
[1739437922340,0.015,2682.3,2681.9,3.58869031]
[1739437922341,3.72853,2682.1,2681.9,3.58869031]
[1739437922642,3.72831,2682.2,2681.9,3.58869031]
[1739437922808,0.31,2682.3,2681.9,3.58869031]
[1739437923208,0.31,2682.3,2681.9,7.31735031]
[1739437923544,3.72828,2682.2,2681.9,3.58869031]
[1739437923749,3.72828,2682.2,2682.0,0.34862023]
[1739437924133,0.03655665,2682.1,2682.0,0.34862023]
[1739437924335,3.90597665,2682.1,2682.0,0.34862023]
[1739437924709,3.90597665,2682.1,2681.7,3.0]
[1739437924710,0.0075,2681.7,2681.3,3.58869031]
[1739437925250,0.0075,2681.7,2681.4,3.0]
[1739437925251,0.0075,2681.5,2681.4,3.0]
[1739437925451,0.0075,2681.5,2681.4,6.72939]
[1739437925754,0.565,2682.0,2681.4,6.72939]
[1739437925909,0.04403785,2681.5,2681.4,6.72939]
[1739437926110,0.0075,2681.5,2681.4,3.0]
[1739437926311,0.0075,2681.5,2681.4,6.72939]
[1739437926651,0.04403785,2681.5,2681.4,3.0]
[1739437926810,0.0075,2681.5,2681.4,6.72939]
[1739437927010,0.04403785,2681.5,2681.4,6.72939]
[1739437927258,0.0075,2681.5,2681.4,6.72939]
[1739437927427,0.04403785,2681.5,2681.4,7.50469]
[1739437927624,0.295,2682.2,2681.9,3.72861]
[1739437927822,0.295,2682.1,2681.9,3.72861]
[1739437928049,0.03656069,2682.1,2681.9,3.72861]
[1739437928253,0.03656069,2682.1,2682.0,3.72856]
[1739437928410,0.295,2682.2,2682.0,3.72856]
[1739437928612,0.03656069,2682.1,2682.0,3.72856]
[1739437928934,0.03656069,2682.1,2681.9,4.53021]
[1739437929136,0.0075,2682.3,2682.0,3.72853]
[1739437929955,0.0075,2682.3,2681.9,5.71499503]
[1739437930112,0.0075,2682.3,2681.9,3.8016]
[1739437930317,0.0075,2682.3,2681.9,7.53025]
[1739437930541,0.0075,2682.3,2681.9,7.53029]
[1739437930856,0.0075,2682.3,2682.0,3.72853]
[1739437931855,0.015,2682.3,2681.9,3.8016]
[1739437932149,0.015,2682.3,2681.9,3.72865]
[1739437932543,0.015,2682.3,2682.1,3.72841]
[1739437932736,0.015,2682.4,2682.0,3.72854]
[1739437932927,0.294,2682.3,2682.0,3.72854]
[1739437933467,0.0075,2682.4,2682.1,3.72841]
[1739437933753,0.294,2682.7,2682.4,3.72793]
[1739437934259,0.294,2682.7,2682.5,3.72778]
[1739437934416,0.015,2683.0,2682.5,3.72778]
[1739437934615,0.294,2682.9,2682.6,0.7743]
[1739437934827,0.03543892,2682.9,2682.7,7.31620031]
[1739437935032,0.03543892,2682.9,2682.8,3.72744]
[1739437935367,7.45425,2683.1,2682.6,4.502]
[1739437935568,0.03568077,2682.9,2682.6,4.502]
[1739437935866,0.015,2683.0,2682.6,4.502]
[1739437936073,0.03567697,2682.8,2682.6,8.22964]
[1739437936230,0.0075,2683.2,2682.7,7.31627031]
[1739437936567,0.294,2683.1,2682.7,7.31627031]
[1739437936739,0.294,2683.1,2682.6,0.7743]
[1739437936939,0.294,2683.1,2682.7,3.72755]
[1739437937169,0.294,2683.1,2682.8,3.72743]
[1739437937673,0.1493508,2683.4,2683.2,3.72682]
[1739437938244,0.1493508,2683.4,2682.9,0.7696]
[1739437938445,3.86776,2683.3,2682.6,4.47858]
[1739437938652,3.74191,2683.2,2682.7,3.72757]
[1739437938975,0.015,2683.2,2682.8,6.72735]
[1739437939171,0.126,2683.3,2682.9,3.72726]
[1739437939475,0.1493508,2683.4,2682.9,3.72726]
[1739437939645,0.0075,2683.3,2682.8,6.72734]
[1739437939850,0.0075,2683.3,2682.9,3.72723]
[1739437940072,0.0075,2683.3,2682.6,0.7509]
[1739437940373,0.0075,2683.3,2682.9,3.72722]
[1739437940687,0.0075,2683.3,2683.0,3.72708]
[1739437941028,3.8335408,2683.4,2682.9,3.0]
[1739437941398,0.1068508,2683.4,2683.0,3.7271]
[1739437941559,0.1068508,2683.4,2682.8,3.0]
[1739437941560,0.0075,2683.3,2682.8,3.0]
[1739437941881,0.0075,2683.3,2683.0,3.72714]
[1739437942079,0.1068508,2683.4,2682.8,3.0]
[1739437942280,0.1068508,2683.4,2683.3,3.72675]
[1739437942448,0.1068508,2683.4,2683.3,4.55945]
[1739437942634,0.1068508,2683.4,2682.9,0.8327]
[1739437942829,0.1068508,2683.4,2683.0,0.38327]
[1739437943035,0.1068508,2683.4,2683.1,3.72693]
[1739437943332,0.1068508,2683.4,2683.1,3.72701]
[1739437943532,3.8334708,2683.4,2683.0,3.0]
[1739437943960,0.1068508,2683.4,2682.9,0.8327]
[1739437944145,0.1068508,2683.4,2682.9,5.30202903]
[1739437944844,3.8334908,2683.4,2682.9,5.30202903]
[1739437945069,3.8334908,2683.4,2682.9,4.55989]
[1739437945235,3.72676,2683.3,2682.9,4.55989]
[1739437945441,3.8334808,2683.4,2682.9,4.55989]
[1739437945641,3.72676,2683.3,2682.9,4.55989]
[1739437945975,0.1068508,2683.4,2683.0,3.72704]
[1739437946166,3.72676,2683.3,2682.8,3.0]
[1739437946336,7.45362,2683.3,2682.8,6.72736]
[1739437946539,3.8335708,2683.4,2682.8,3.72744]
[1739437946938,3.72743,2682.9,2682.4,0.8233]
[1739437947169,3.72731,2682.9,2682.4,0.8233]
[1739437947399,0.126,2683.0,2682.4,0.8233]
[1739437947709,0.126,2683.0,2682.5,3.72775]
[1739437947909,0.294,2683.1,2682.7,3.72745]
[1739437948412,0.03627027,2683.0,2682.6,3.72771]
[1739437948601,0.03627027,2683.0,2682.4,8.90136569]
[1739437948800,0.005,2683.9,2683.3,0.1]
[1739437949102,0.005,2683.9,2683.8,3.8004]
[1739437949284,0.005,2683.9,2683.8,0.8004]
[1739437949487,0.005,2683.9,2683.5,0.8004]
[1739437949694,0.005,2683.9,2683.6,3.72626]
[1739437949938,0.005,2683.9,2683.5,3.8004]
[1739437950071,0.005,2683.9,2683.2,3.58869031]
[1739437950072,3.85695,2683.9,2683.2,8.85654213]
[1739437950272,0.131,2683.9,2683.4,3.72656]
[1739437950543,0.005,2683.9,2683.7,4.50979]
[1739437950672,0.126,2684.8,2683.9,0.7836]
[1739437950872,0.126,2684.8,2684.3,3.72536]
[1739437951065,0.126,2684.8,2684.3,7.45063]
[1739437951322,0.126,2684.8,2684.4,3.72514]
[1739437951485,0.126,2684.8,2684.3,3.72527]
[1739437952173,3.72491,2684.7,2684.2,3.0]
[1739437952374,0.3,2684.7,2684.2,3.0]
[1739437952917,0.3,2684.7,2684.2,4.81388152]
[1739437953414,0.3,2684.7,2684.2,4.85112703]
[1739437953642,4.02482,2684.7,2684.2,4.81388152]
[1739437953818,4.02482,2684.7,2684.2,1.08838152]
[1739437954215,3.72505,2684.6,2684.1,3.0]
[1739437954456,0.015,2684.4,2683.6,0.8023]
[1739437954605,0.126,2684.0,2683.5,0.73763645]
[1739437954944,0.126,2684.0,2683.5,3.72646]
[1739437955102,0.126,2684.0,2683.6,3.0]
[1739437955302,0.126,2684.0,2683.5,3.72637]
[1739437955649,0.126,2684.3,2683.7,3.72611]
[1739437955842,0.126,2684.3,2683.5,4.551957]
[1739437956043,7.45139,2684.1,2683.5,4.551957]
[1739437956245,3.72565,2684.1,2683.5,3.72642]
[1739437957011,3.72596,2683.9,2683.3,0.8023]
[1739437957210,3.72596,2683.9,2683.3,3.72672]
[1739437957211,0.126,2683.8,2683.3,3.72672]
[1739437957411,3.72559,2684.2,2683.6,3.72631]
[1739437957735,0.299,2683.7,2683.4,3.72649]
[1739437957934,0.299,2683.7,2683.5,0.03726088]
[1739437958135,0.299,2683.7,2683.5,3.76370088]
[1739437958335,3.72574,2684.1,2683.5,3.76370088]
[1739437958541,0.299,2684.0,2683.7,3.72608]
[1739437958786,0.299,2684.0,2683.5,0.37637009]
[1739437959097,0.299,2684.0,2683.8,3.72602]
[1739437959395,4.02487,2684.0,2683.4,3.72652]
[1739437959596,4.02487,2684.0,2683.5,3.72647]
[1739437960011,0.299,2684.0,2683.5,3.72647]
[1739437960370,0.299,2684.0,2683.4,0.803]
[1739437960596,3.72558,2684.2,2683.6,3.72623]
[1739437960795,0.298,2684.0,2683.6,3.72623]
[1739437961113,4.0238,2684.0,2683.4,4.52951]
[1739437961299,0.298,2684.0,2683.4,1.555951]
[1739437961495,4.02379,2684.0,2683.5,3.72643]
[1739437961713,3.72593,2683.9,2683.3,3.72666]
[1739437961887,3.72614,2683.8,2683.3,3.72666]
[1739437962433,0.126,2683.9,2683.3,3.72666]
[1739437962624,0.126,2683.9,2683.5,3.72644]
[1739437963031,3.72613,2683.8,2683.3,3.7267]
[1739437963190,7.45231,2683.8,2683.3,3.7267]
[1739437963391,7.45228,2683.8,2683.3,3.7267]
[1739437963725,3.72628,2683.7,2683.1,4.53]
[1739437964030,3.72628,2683.7,2683.2,3.72688]
[1739437964197,0.126,2683.9,2683.3,3.72668]
[1739437964405,0.126,2683.9,2683.4,3.72653]
[1739437964730,0.126,2683.9,2683.2,3.72679]
[1739437964888,0.126,2683.9,2683.1,6.727]
[1739437965093,3.7262,2683.7,2683.1,3.0]
[1739437965425,3.7262,2683.7,2683.2,3.72689]
[1739437965426,3.72628,2683.7,2683.2,3.72689]
[1739437965663,3.72634,2683.6,2683.1,6.72695]
[1739437965989,3.72619,2683.7,2683.2,3.72687]
[1739437966424,3.72619,2683.7,2683.1,3.72703]
[1739437966425,3.72639,2683.6,2683.1,3.72703]
[1739437966694,3.72639,2683.6,2683.1,4.848954]
[1739437966970,3.72619,2683.7,2683.1,1.121924]
[1739437967195,3.72647,2683.5,2683.0,6.72715]
[1739437967546,3.72639,2683.6,2683.1,3.72701]
[1739437967746,3.72656,2683.5,2683.0,3.0]
[1739437967949,3.72656,2683.5,2683.0,6.72712]
[1739437968130,3.72639,2683.6,2683.0,3.0]
[1739437968330,0.126,2683.9,2683.4,3.72649]
[1739437968574,0.126,2683.9,2683.3,3.72674]
[1739437968575,3.852,2683.9,2683.3,3.72674]
[1739437968929,3.72613,2683.8,2683.3,3.72674]
[1739437969130,3.72613,2683.8,2683.0,4.19652987]
[1739437969131,3.72626,2683.7,2683.1,3.7269]
[1739437969432,3.72654,2683.5,2683.0,7.92368987]
[1739437970191,3.72634,2683.6,2683.1,3.727]
[1739437971199,3.72641,2683.6,2683.1,3.72701]
[1739437971645,3.85271,2683.4,2682.9,3.72723]
[1739437971838,7.57941,2683.4,2682.9,3.72723]
[1739437972040,3.8527,2683.4,2682.9,3.72723]
[1739437972873,3.8527,2683.4,2683.0,3.72715]
[1739437972874,0.126,2683.4,2683.0,3.72715]
[1739437973205,3.85263,2683.4,2683.0,3.72715]
[1739437973593,0.126,2683.4,2683.0,3.72715]
[1739437973855,0.126,2683.4,2683.0,3.72709]
[1739437974553,0.126,2683.4,2683.0,3.72706]
[1739437974916,3.85263,2683.4,2682.9,3.72729]
[1739437975349,7.57933,2683.4,2682.9,3.72729]
[1739437975507,3.85263,2683.4,2682.8,7.4547]
[1739437975708,3.72679,2683.3,2682.9,3.72724]
[1739437975955,3.85261,2683.4,2682.9,3.72724]
[1739437976322,7.5793,2683.4,2682.9,3.72723]
[1739437976727,7.57932,2683.4,2682.9,3.72721]
[1739437976912,3.85261,2683.4,2682.9,3.72721]
[1739437977314,3.85261,2683.4,2682.8,1.55805987]
[1739437977525,3.727,2683.2,2682.7,3.7275]
[1739437977930,3.72682,2683.3,2682.8,3.72737]
[1739437978462,0.126,2683.4,2683.0,3.72707]
[1739437978778,3.85272,2683.4,2682.9,3.72724]
[1739437979453,3.72675,2683.3,2682.9,3.72724]
[1739437979954,3.85263,2683.4,2682.9,3.72724]
[1739437980323,3.85263,2683.4,2683.0,3.7271]
[1739437980526,0.126,2683.4,2682.9,3.72723]
[1739437980757,3.85269,2683.4,2682.9,3.72723]
[1739437981253,0.126,2683.4,2682.9,3.72719]
[1739437981421,3.85262,2683.4,2683.0,3.7271]
[1739437981628,3.7269,2683.2,2682.8,3.72731]
[1739437981838,3.7269,2683.2,2682.6,7.30526037]
[1739437982039,3.72703,2683.1,2682.7,3.72757]
[1739437982223,3.72726,2683.0,2682.5,0.73312294]
[1739437982428,3.72726,2683.0,2682.5,4.46089294]
[1739437982652,0.294,2682.9,2682.5,4.46089294]
[1739437982825,4.02132,2682.9,2682.4,4.49518]
[1739437983027,4.02132,2682.9,2682.5,3.72778]
[1739437983028,0.294,2682.9,2682.5,3.72778]
[1739437983340,0.294,2682.9,2682.7,3.7275]
[1739437983528,0.294,2682.9,2682.5,3.72786]
[1739437983725,0.294,2682.9,2682.6,3.72772]
[1739437984065,0.294,2682.9,2682.5,3.72786]
[1739437984237,0.294,2682.9,2682.5,3.72779]
[1739437984427,0.294,2682.9,2682.5,3.72775]
[1739437984627,0.42,2682.9,2682.5,3.72777]
[1739437985084,4.14738,2682.9,2682.4,3.72799]
[1739437985681,4.14732,2682.9,2682.4,3.72799]
[1739437985878,3.72747,2682.8,2682.3,0.7645075]
[1739437986118,3.72747,2682.8,2682.4,3.72797]
[1739437986294,4.14731,2682.9,2682.4,3.72797]
[1739437986674,3.72746,2682.8,2682.4,3.72797]
[1739437986865,3.72746,2682.8,2682.3,3.72802]
[1739437987202,3.72744,2682.8,2682.4,3.72796]
[1739437987378,0.42,2682.9,2682.4,3.72796]
[1739437987379,0.42,2682.9,2682.5,3.72778]
[1739437987574,4.14732,2682.9,2682.5,3.72778]
[1739437988093,0.42,2682.9,2682.6,3.72765]
[1739437988269,0.42,2682.9,2682.5,3.72778]
[1739437989110,4.14734,2682.9,2682.5,3.72778]
[1739437989290,4.14734,2682.9,2682.4,3.72799]
[1739437989609,4.14731,2682.9,2682.4,3.72791]
[1739437990218,0.42,2682.9,2682.4,3.72791]
[1739437990395,0.42,2682.9,2682.1,3.72974021]
[1739437990396,3.72758,2682.7,2682.1,4.45813021]
[1739437990604,0.126,2682.5,2681.7,3.7289]
[1739437990762,3.72832,2682.2,2681.6,4.52698]
[1739437991108,3.72852,2682.1,2681.6,0.798]
[1739437991327,0.126,2682.0,2681.6,4.554762]
[1739437991471,4.02172,2681.9,2681.6,0.825652]
[1739437991883,4.02172,2681.9,2681.3,3.72945]
[1739437991884,0.015,2681.8,2681.3,3.72945]